bitfinex/quotes_ETHUSD_20250428
["timestamp","ask_amount","ask_price","bid_price","bid_amount"]
[1745859495363,0.7575,1758.9,1758.5,5.68651272]
[1745859495565,0.7575,1758.9,1758.4,11.83769118]
[1745859495799,7.09835142,1759.1,1758.7,5.68584155]
[1745859495966,0.8091,1759.1,1758.7,11.37163122]
[1745859496171,0.8091,1759.1,1758.7,5.68578967]
[1745859496487,1.22554372,1759.1,1758.9,5.68519055]
[1745859496672,0.41644372,1759.1,1758.9,5.68519055]
[1745859496872,0.7593,1759.3,1759.0,5.68504832]
[1745859498139,0.7593,1759.3,1758.9,7.35556963]
[1745859499212,3.0,1759.4,1758.9,7.35556963]
[1745859499803,3.0,1759.4,1758.9,7.35554043]
[1745859500024,3.0,1759.4,1758.9,13.04069857]
[1745859500324,3.0,1759.4,1758.9,7.35574178]
[1745859500520,3.0,1759.4,1758.9,13.04089696]
[1745859500725,3.0,1759.4,1758.9,7.35553426]
[1745859502803,3.0,1759.4,1758.9,7.35551914]
[1745859503099,1.21399651,1759.5,1759.2,5.68417275]
[1745859503290,1.21399651,1759.5,1759.0,7.23985247]
[1745859503497,1.21399651,1759.5,1759.1,5.68469473]
[1745859503716,1.21399651,1759.5,1759.1,5.68453994]
[1745859504196,1.21399651,1759.5,1759.0,12.9247539]
[1745859504523,1.21399651,1759.5,1759.0,7.23988732]
[1745859504734,1.21399651,1759.5,1759.0,7.23988027]
[1745859505324,3.0,1759.4,1759.0,7.23988027]
[1745859505931,7.11585142,1759.3,1758.8,5.333]
[1745859506437,0.8266,1759.2,1758.8,5.333]
[1745859506804,0.8266,1759.2,1758.8,11.01858204]
[1745859507215,0.8266,1759.2,1758.8,5.333]
[1745859507425,3.8266,1759.2,1758.8,5.333]
[1745859507744,0.38266,1759.1,1758.8,5.333]
[1745859507907,3.8266,1759.2,1758.8,11.01843894]
[1745859509415,3.8266,1759.2,1758.8,5.333]
[1745859511135,3.0,1759.2,1758.8,5.333]
[1745859511338,3.0,1759.2,1758.2,6.49917699]
[1745859511339,3.7741,1758.8,1758.2,6.49917699]
[1745859511522,0.7741,1758.5,1758.3,5.327]
[1745859511722,0.7741,1758.5,1758.3,11.0142523]
[1745859511926,0.7741,1758.5,1758.3,5.327]
[1745859513234,1.20198498,1758.5,1758.3,5.327]
[1745859514238,1.62218348,1758.5,1758.3,5.327]
[1745859514534,3.0,1758.4,1758.0,11.01505766]
[1745859514842,3.0,1758.4,1758.1,5.68779956]
[1745859515543,1.62218348,1758.5,1758.1,11.37552305]
[1745859515846,1.20198498,1758.5,1758.1,5.68772349]
[1745859516031,0.42788498,1758.5,1758.4,5.68698817]
[1745859516226,0.7819,1758.7,1758.4,5.68698817]
[1745859516426,3.7819,1758.7,1758.3,5.68699896]
[1745859516647,3.7819,1758.7,1758.4,5.68694701]
[1745859517430,2.37005702,1758.8,1758.5,5.68636776]
[1745859517635,2.37005702,1758.8,1758.6,6.25480069]
[1745859517806,2.37005702,1758.8,1758.6,5.68616391]
[1745859518009,2.37005702,1758.8,1758.6,11.37230522]
[1745859518314,2.37005702,1758.8,1758.6,5.68614131]
[1745859518733,0.2,1759.9,1758.5,5.68651696]
[1745859518734,0.8058,1759.6,1758.8,5.68569479]
[1745859518906,0.8058,1759.4,1758.7,6.43647894]
[1745859519112,0.8058,1759.2,1758.7,6.43647894]
[1745859519435,4.51530514,1759.2,1758.7,6.43647894]
[1745859519945,0.8058,1759.2,1758.8,5.68551231]
[1745859520255,0.8058,1759.2,1758.8,5.68546158]
[1745859520554,3.8058,1759.2,1758.8,5.68546158]
[1745859520845,3.8058,1759.2,1758.9,5.68515356]
[1745859521550,3.7767,1759.4,1759.0,11.3698914]
[1745859521708,2.02030084,1759.4,1759.0,5.68484728]
[1745859521915,5.02030084,1759.4,1759.0,5.68484728]
[1745859522455,5.02030084,1759.4,1759.1,5.68462712]
[1745859522456,0.7767,1759.4,1759.1,5.68462712]
[1745859522811,0.7767,1759.4,1759.0,6.46836729]
[1745859523223,0.7767,1759.4,1759.0,6.46835526]
[1745859523428,3.7767,1759.4,1759.0,5.68485526]
[1745859524123,3.7767,1759.4,1759.1,5.68469745]
[1745859524395,3.7767,1759.4,1759.0,5.6848275]
[1745859527352,3.8178,1759.6,1758.9,0.55]
[1745859527651,0.8178,1759.6,1759.3,5.68387254]
[1745859528019,0.8178,1759.6,1759.4,5.68363677]
[1745859528239,0.8178,1759.6,1759.4,5.68374822]
[1745859528437,3.8178,1759.8,1759.4,5.68374682]
[1745859528657,3.8178,1759.8,1759.5,5.68340276]
[1745859528845,0.8178,1759.8,1759.4,5.68352641]
[1745859529045,3.8178,1759.8,1759.4,5.68352641]
[1745859529268,3.8178,1759.8,1759.4,6.82027386]
[1745859529675,3.7745,1759.6,1759.2,5.327]
[1745859530039,0.7745,1759.6,1759.3,5.68398491]
[1745859530234,0.7745,1759.6,1759.4,5.6837251]
[1745859530970,3.7678,1759.8,1759.4,5.6837251]
[1745859531145,3.7678,1759.8,1759.3,6.48628491]
[1745859531340,3.7678,1759.8,1759.4,0.64862849]
[1745859531740,3.7678,1759.8,1759.4,6.33220571]
[1745859533181,3.7678,1759.8,1759.4,0.64862849]
[1745859533367,3.7678,1759.8,1759.2,11.01115087]
[1745859533746,3.7678,1759.8,1759.2,16.6953187]
[1745859534539,3.7678,1759.8,1759.3,5.68390706]
[1745859534864,0.7678,1759.8,1759.5,5.68329144]
[1745859535053,0.7678,1759.8,1759.4,5.68353912]
[1745859535254,0.7678,1759.8,1759.4,12.76627302]
[1745859535467,0.7678,1759.8,1759.5,5.68321218]
[1745859535677,0.7678,1759.8,1759.4,7.08267835]
[1745859535840,0.7678,1759.8,1759.5,5.68342729]
[1745859536243,0.7678,1759.8,1759.4,7.08267835]
[1745859536455,0.7678,1759.8,1759.5,0.70826784]
[1745859536856,0.7678,1759.8,1759.4,1.39915391]
[1745859536857,0.7678,1759.8,1759.4,7.08290035]
[1745859537881,0.7678,1759.8,1759.4,7.08273401]
[1745859538080,0.7678,1759.8,1759.5,5.68330179]
[1745859538289,0.5,1759.7,1759.4,7.08273401]
[1745859538790,0.5,1759.7,1759.4,1.39915391]
[1745859538954,0.5,1759.7,1759.5,5.683259]
[1745859539156,0.5,1759.7,1759.6,5.68310979]
[1745859539975,0.5,1759.7,1759.5,5.68323438]
[1745859540297,1.3245,1759.7,1759.5,5.321]
[1745859542454,6.1138,1759.5,1759.2,5.32]
[1745859542659,7.08205142,1759.5,1759.2,5.32]
[1745859547110,8.09025656,1759.5,1759.2,5.32]
[1745859549419,0.7928,1759.5,1759.2,5.32]
[1745859553837,4.76136617,1759.7,1759.3,0.7626]
[1745859553987,4.76136617,1759.7,1759.2,5.32]
[1745859554690,11.05061759,1759.7,1759.2,5.32]
[1745859554890,11.05061759,1759.7,1759.2,6.49671145]
[1745859555199,6.28925142,1759.5,1759.2,5.321]
[1745859555390,3.0,1759.4,1759.2,5.321]
[1745859558329,3.8301,1759.6,1759.2,5.321]
[1745859560333,1.70956617,1759.7,1759.2,11.76868721]
[1745859561431,1.70956617,1759.7,1759.2,6.0845]
[1745859561632,3.8209,1759.6,1759.2,5.321]
[1745859562518,0.8209,1759.6,1759.2,5.321]
[1745859562722,0.8209,1759.6,1759.3,0.7617]
[1745859563735,4.21614642,1759.6,1759.3,0.7617]
[1745859565041,3.39524642,1759.6,1759.3,0.7617]
[1745859565224,3.39524642,1759.6,1759.3,1.93840274]
[1745859565739,3.0,1759.3,1759.2,5.321]
[1745859570347,3.0,1759.3,1758.7,0.775]
[1745859570348,0.7855,1759.2,1758.7,0.775]
[1745859570534,3.0,1759.0,1758.9,5.315]
[1745859571753,3.09518471,1759.6,1758.9,5.315]
[1745859571754,3.39524642,1759.3,1758.9,5.315]
[1745859571925,3.39524642,1759.3,1759.0,0.8281]
[1745859575719,3.0,1759.2,1759.0,0.8281]
[1745859577223,3.39524642,1759.3,1759.0,0.8281]
[1745859580422,5.37005702,1759.6,1759.0,6.51306016]
[1745859580623,3.39524642,1759.5,1759.1,0.65130602]
[1745859584564,3.39524642,1759.5,1759.1,6.33602637]
[1745859584971,4.33171259,1759.7,1759.2,0.754]
[1745859585169,4.33171259,1759.7,1759.3,5.68396642]
[1745859585471,4.33171259,1759.7,1759.5,0.754]
[1745859586670,4.33171259,1759.7,1759.3,6.069]
[1745859586845,3.39524642,1759.5,1759.3,6.069]
[1745859587763,0.5,1759.7,1759.4,5.6837251]
[1745859588093,3.89524642,1759.7,1759.5,1.37227251]
[1745859588255,3.89524642,1759.7,1759.5,0.8039]
[1745859588849,0.5,1759.7,1759.6,5.68310979]
[1745859589043,0.5,1759.7,1759.6,6.50310979]
[1745859593763,0.5,1759.7,1759.6,7.05310979]
[1745859600268,0.5,1759.7,1759.6,6.50310979]
[1745859600472,0.5,1759.7,1759.6,6.52563966]
[1745859600693,0.5,1759.7,1759.6,12.20874945]
[1745859600894,0.5,1759.7,1759.6,5.307]
[1745859601109,0.5,1759.7,1759.6,11.54010979]
[1745859602797,0.5,1759.7,1759.6,10.99010979]
[1745859603000,0.5,1759.7,1759.6,12.65744924]
[1745859603814,0.5,1759.7,1759.6,14.03404924]
[1745859604105,3.0,1760.2,1760.1,5.68149536]
[1745859604313,3.0,1760.2,1760.0,5.307]
[1745859604476,3.69524642,1760.2,1760.0,5.307]
[1745859604685,0.7957,1760.1,1760.0,5.307]
[1745859605406,0.7957,1760.1,1759.8,5.68230785]
[1745859605407,0.7957,1760.1,1759.8,5.307]
[1745859605607,3.0,1759.9,1759.8,5.307]
[1745859608075,3.7957,1760.1,1759.8,6.0935]
[1745859608278,3.7957,1760.1,1759.8,11.77578223]
[1745859608707,3.7957,1760.1,1759.8,5.307]
[1745859608907,4.51479464,1760.1,1759.8,5.307]
[1745859609216,3.0,1759.9,1759.8,5.307]
[1745859611332,3.0,1759.9,1759.6,10.98901523]
[1745859611496,3.0,1760.2,1759.7,0.7759]
[1745859611700,3.39524642,1760.4,1760.0,6.45749947]
[1745859611880,3.39524642,1760.4,1760.1,5.68147404]
[1745859612585,0.8159,1760.5,1760.1,1.74450448]
[1745859612819,0.8159,1760.5,1760.1,5.6813809]
[1745859613330,3.8159,1760.5,1760.1,5.6813809]
[1745859613684,3.8159,1760.5,1760.2,5.68105923]
[1745859614723,3.0,1760.5,1760.2,5.68105923]
[1745859615581,3.0,1760.5,1760.1,11.36260271]
[1745859615811,3.0,1760.5,1760.1,7.42573835]
[1745859616312,3.0,1760.5,1760.2,5.68101114]
[1745859617095,3.0,1760.5,1760.2,5.68094209]
[1745859618129,3.0,1760.5,1760.2,6.44854209]
[1745859618365,3.0,1760.5,1760.2,0.7676]
[1745859618654,3.0,1760.3,1760.0,5.306]
[1745859618945,3.0,1760.1,1760.0,5.306]
[1745859619307,3.8068,1760.1,1760.0,5.306]
[1745859621047,3.8068,1760.1,1759.7,10.98856514]
[1745859621648,3.0,1760.1,1759.8,5.68224447]
[1745859622538,3.0,1760.1,1759.7,10.98857036]
[1745859622740,3.0,1760.1,1759.8,5.68233436]
[1745859622911,3.0,1760.1,1759.8,5.68245572]
[1745859623124,3.0,1760.1,1759.7,12.1693174]
[1745859623335,3.39524642,1760.0,1759.7,5.306]
[1745859623554,3.39524642,1760.0,1759.7,10.98876061]
[1745859624526,3.39524642,1760.0,1759.7,5.306]
[1745859625150,3.39524642,1760.0,1759.7,10.98875378]
[1745859625346,3.39524642,1760.1,1759.7,10.98875378]
[1745859625522,3.39524642,1760.1,1759.7,10.98857278]
[1745859625723,3.81502106,1760.1,1759.7,10.98857278]
[1745859626336,3.81502106,1760.1,1759.8,5.68233767]
[1745859626537,3.39524642,1760.1,1759.7,10.98857278]
[1745859626749,3.39524642,1760.1,1759.7,10.98877959]
[1745859626966,3.39524642,1760.1,1759.7,5.306]
[1745859627255,6.79049284,1759.8,1758.7,0.7669]
[1745859627557,3.39524642,1759.2,1758.8,5.299]
[1745859627714,3.39524642,1759.2,1758.8,6.47417166]
[1745859628735,0.7936,1759.4,1759.1,5.68472514]
[1745859628949,3.39524642,1759.3,1759.0,11.36968628]
[1745859629151,3.39524642,1759.3,1759.1,5.68460941]
[1745859629457,3.39524642,1759.5,1759.1,6.82155589]
[1745859630076,3.39524642,1759.5,1759.2,5.68433907]
[1745859630243,3.39524642,1759.5,1759.1,6.82155589]
[1745859630593,3.39524642,1759.5,1759.1,6.8216211]
[1745859630888,3.39524642,1759.3,1758.9,5.68522496]
[1745859631042,4.15574642,1759.3,1758.8,12.9172454]
[1745859631242,3.39524642,1759.1,1758.8,12.9172454]
[1745859631575,3.39524642,1759.1,1758.9,5.68526091]
[1745859631752,3.39524642,1759.1,1758.8,12.91724185]
[1745859632578,3.39524642,1759.1,1758.9,5.68536142]
[1745859633391,3.39524642,1759.1,1758.8,12.91724185]
[1745859633760,3.39524642,1759.1,1758.9,5.68537108]
[1745859634188,3.39524642,1759.1,1758.8,18.60271383]
[1745859634385,3.39524642,1759.1,1758.9,5.68518084]
[1745859634792,3.39524642,1759.4,1759.1,5.68442748]
[1745859635700,3.39524642,1759.4,1759.1,5.68471349]
[1745859635869,3.39524642,1759.4,1759.0,5.68485164]
[1745859636261,3.39524642,1759.4,1759.1,5.68468451]
[1745859636576,3.39524642,1759.4,1759.0,5.68482564]
[1745859636762,3.39524642,1759.4,1759.1,5.68469209]
[1745859637463,3.39524642,1759.4,1759.2,6.50328352]
[1745859637667,3.39524642,1759.6,1759.3,5.68379218]
[1745859637863,3.39524642,1759.8,1759.5,5.68333128]
[1745859638064,3.0,1759.7,1759.4,5.68344347]
[1745859638373,3.39524642,1759.8,1759.4,6.82018116]
[1745859638575,3.0,1759.7,1759.4,6.82018116]
[1745859638777,3.0,1759.7,1759.4,12.50371621]
[1745859639007,3.0,1759.7,1759.4,6.82018116]
[1745859639659,3.39524642,1759.8,1759.4,6.82018116]
[1745859639895,3.39524642,1759.8,1759.4,5.68344347]
[1745859640304,3.39524642,1759.8,1759.4,11.36697755]
[1745859640470,3.39524642,1759.8,1759.4,11.36697756]
[1745859641010,3.39524642,1759.8,1759.5,6.4795148]
[1745859641166,3.39524642,1759.8,1759.6,5.68301477]
[1745859641563,6.39524642,1760.0,1759.6,12.20013906]
[1745859641867,3.39524642,1760.0,1759.7,5.68271619]
[1745859642097,6.39524642,1760.0,1759.7,5.68271619]
[1745859642901,6.81412235,1760.0,1759.7,5.68271619]
[1745859643782,6.39524642,1760.0,1759.7,5.68271619]
[1745859644006,6.39524642,1760.0,1759.7,1.78828552]
[1745859644500,0.7762,1759.9,1759.7,1.78828552]
[1745859645266,6.39524642,1760.0,1759.7,1.78828552]
[1745859647585,3.39524642,1759.8,1759.6,6.116]
[1745859647902,3.39524642,1759.8,1759.6,11.79910744]
[1745859648569,3.39524642,1759.8,1759.6,17.48201487]
[1745859649005,3.39524642,1759.8,1759.7,5.68278683]
[1745859649200,3.39524642,1759.8,1759.6,11.79890743]
[1745859649402,3.39524642,1759.8,1759.7,6.86267757]
[1745859649719,3.39524642,1759.8,1759.7,1.17989074]
[1745859649891,3.39524642,1759.9,1759.7,6.86267757]
[1745859650094,3.39524642,1759.9,1759.7,6.86245772]
[1745859650603,3.39524642,1759.9,1759.7,1.17989074]
[1745859651115,3.39524642,1759.9,1759.7,6.86264372]
[1745859653029,3.39524642,1759.9,1759.7,1.17989074]
[1745859653225,3.39524642,1759.9,1759.6,6.116]
[1745859653539,3.39524642,1759.7,1759.6,5.301]
[1745859654435,3.39524642,1759.7,1759.6,10.98410979]
[1745859654903,3.39524642,1759.9,1759.6,10.98410979]
[1745859655306,3.39524642,1759.9,1759.6,16.6670651]
[1745859655551,3.39524642,1759.9,1759.6,10.98395531]
[1745859656515,3.39524642,1759.9,1759.7,5.68271753]
[1745859657949,3.39524642,1759.9,1759.8,0.7907]
[1745859658134,3.39524642,1759.9,1759.8,6.47316391]
[1745859659309,3.39524642,1759.9,1759.8,0.7907]
[1745859661657,3.39524642,1759.9,1759.7,8.15882643]
[1745859662543,3.39524642,1759.9,1759.6,10.98391319]
[1745859665118,3.39524642,1759.9,1759.6,5.301]
[1745859665319,3.39524642,1759.9,1759.6,10.98400891]
[1745859665638,0.7963,1759.8,1759.6,5.301]
[1745859665844,0.7963,1759.8,1759.6,10.98409846]
[1745859666049,0.7963,1759.8,1759.6,10.98409425]
[1745859666751,0.7963,1759.8,1759.6,5.301]
[1745859670393,0.7963,1759.8,1759.6,10.98403925]
[1745859671490,0.7963,1759.8,1759.6,5.301]
[1745859672308,0.7963,1759.8,1759.6,10.98401965]
[1745859672504,4.17734642,1759.9,1759.6,5.301]
[1745859672709,4.89508106,1759.9,1759.6,5.301]
[1745859673488,3.39524642,1759.7,1759.6,5.301]
[1745859673894,6.39524642,1759.7,1759.6,5.301]
[1745859674185,3.39524642,1760.0,1759.4,0.55]
[1745859674384,2.37005702,1760.3,1759.7,0.799]
[1745859674385,0.7553,1760.3,1759.7,0.799]
[1745859674598,0.7553,1760.3,1760.0,6.50259671]
[1745859674923,3.39524642,1760.1,1759.9,5.68203757]
[1745859675212,3.39524642,1760.1,1759.8,11.79730411]
[1745859675388,3.39524642,1760.1,1759.8,19.22756365]
[1745859675716,3.39524642,1760.1,1759.8,19.22753233]
[1745859676218,3.39524642,1760.1,1759.9,5.68213387]
[1745859678611,3.39524642,1760.1,1759.9,11.3640472]
[1745859678814,4.15054642,1760.3,1760.0,5.68166109]
[1745859679375,3.39524642,1760.4,1760.0,6.81801853]
[1745859679713,3.39524642,1760.4,1760.1,0.8225]
[1745859680613,3.39524642,1760.4,1760.0,5.68181581]
[1745859681507,3.39524642,1760.2,1760.0,5.68181581]
[1745859681707,3.39524642,1760.2,1759.9,0.8225]
[1745859681909,3.39524642,1760.2,1759.9,6.50443932]
[1745859682223,3.39524642,1760.2,1759.9,14.10923323]
[1745859682389,3.39524642,1760.2,1760.0,5.68177942]
[1745859682590,3.39524642,1760.2,1759.9,14.10921955]
[1745859682799,3.39524642,1760.2,1759.9,14.10921533]
[1745859683119,3.39524642,1760.2,1760.0,5.68174713]
[1745859683321,3.39524642,1760.2,1760.1,0.56817471]
[1745859683487,6.39524642,1760.4,1760.1,6.24967007]
[1745859683687,6.39524642,1760.4,1760.1,0.56817471]
[1745859685111,3.39524642,1760.4,1760.2,5.68112703]
[1745859685298,3.39524642,1760.4,1760.2,6.3060572]
[1745859685498,3.39524642,1760.4,1760.2,0.62493017]
[1745859686941,3.39524642,1760.6,1760.3,5.68060976]
[1745859687234,4.18334642,1760.9,1760.6,5.67977384]
[1745859687388,3.39524642,1760.9,1760.6,6.81570407]
[1745859687730,3.0,1760.8,1760.6,6.81581662]
[1745859687911,3.0,1760.8,1760.6,5.67983633]
[1745859688116,3.39524642,1760.9,1760.6,5.67974322]
[1745859688325,3.0,1760.8,1760.6,5.67974322]
[1745859688500,3.0,1760.8,1760.5,5.68004101]
[1745859688705,3.0,1760.8,1760.5,5.6799879]
[1745859688918,3.0,1760.8,1760.6,11.53377746]
[1745859689235,3.0,1760.8,1760.6,11.53368799]
[1745859689531,3.0,1760.8,1760.6,17.21334612]
[1745859689741,3.0,1760.8,1760.7,5.67955926]
[1745859690026,3.0,1760.8,1760.6,11.53365692]
[1745859690327,3.0,1760.8,1760.7,1.91766569]
[1745859690700,3.0,1760.8,1760.7,1.15336569]
[1745859690999,3.0,1760.8,1760.6,5.85399879]
[1745859692538,6.39524642,1760.7,1760.3,5.286]
[1745859692703,3.39524642,1760.5,1760.3,5.286]
[1745859693339,4.14534642,1760.5,1760.3,5.286]
[1745859694231,4.14534642,1760.5,1760.0,0.7812]
[1745859694405,3.39524642,1760.3,1760.1,5.286]
[1745859694605,3.39524642,1760.3,1760.2,0.5286]
[1745859697200,3.39524642,1760.3,1760.1,10.96747603]
[1745859697701,3.39524642,1760.3,1760.1,5.286]
[1745859699439,3.39524642,1760.3,1760.1,10.96747358]
[1745859699903,4.14534642,1760.5,1760.2,5.68117259]
[1745859701034,4.21964642,1760.7,1760.4,5.68039659]
[1745859701202,3.39524642,1760.7,1760.5,6.24807539]
[1745859702114,3.39524642,1760.7,1760.5,0.56803966]
[1745859702915,3.39524642,1760.7,1760.5,6.24822429]
[1745859703117,3.39524642,1760.7,1760.5,0.56803966]
[1745859703341,3.39524642,1760.7,1760.5,11.53308985]
[1745859703542,3.0,1760.8,1760.5,11.53308985]
[1745859703543,1.23592166,1761.1,1760.7,5.67955926]
[1745859703705,4.19874642,1761.1,1760.8,5.67895959]
[1745859704044,3.39524642,1761.1,1760.8,5.67895959]
[1745859704338,3.39524642,1761.1,1760.8,6.24703547]
[1745859704541,3.39524642,1761.1,1760.8,6.24698412]
[1745859705144,3.39524642,1761.1,1760.8,11.92602239]
[1745859705443,3.39524642,1761.2,1760.8,6.24693423]
[1745859705808,3.39524642,1761.2,1760.9,6.43707416]
[1745859706144,3.39524642,1761.2,1760.9,7.705475]
[1745859706351,0.8035,1761.3,1760.9,12.9905062]
[1745859706640,6.56880344,1761.6,1761.1,5.67812899]
[1745859706841,3.39524642,1761.4,1761.1,5.67812899]
[1745859707013,3.39524642,1761.4,1761.0,11.35701262]
[1745859707213,3.39524642,1761.4,1761.1,5.67819138]
[1745859707447,3.39524642,1761.4,1761.0,7.54526212]
[1745859707622,0.8035,1761.6,1761.2,0.7582]
[1745859707950,3.0,1761.5,1761.2,5.67786424]
[1745859708240,4.19874642,1761.6,1761.2,5.67786424]
[1745859708451,4.19874642,1761.6,1761.2,6.8892816]
[1745859708657,3.39524642,1761.4,1761.2,1.21141736]
[1745859708822,0.7612,1761.3,1761.0,1.86686135]
[1745859709154,3.39524642,1761.2,1761.0,1.86686135]
[1745859710575,0.7612,1761.3,1761.0,1.86686135]
[1745859710720,3.0,1761.4,1761.1,0.7633]
[1745859710920,3.0,1761.4,1761.1,6.44146563]
[1745859711148,3.0,1761.4,1761.1,6.44138754]
[1745859711350,3.0,1761.4,1761.2,5.67794255]
[1745859711562,3.39524642,1761.6,1761.1,6.44137094]
[1745859711828,3.39524642,1761.6,1761.2,6.32194963]
[1745859712068,3.39524642,1761.6,1761.2,6.32184858]
[1745859712554,3.39524642,1761.6,1761.2,6.32204109]
[1745859713335,3.39524642,1761.6,1761.2,6.32190259]
[1745859713536,3.39524642,1761.6,1761.2,0.64413709]
[1745859714441,3.39524642,1761.6,1761.3,5.67760091]
[1745859714636,3.39524642,1761.6,1761.3,6.87756935]
[1745859715669,3.39524642,1761.6,1761.4,0.8074]
[1745859716949,3.39524642,1761.6,1761.3,6.47696844]
[1745859717283,3.39524642,1761.4,1761.3,5.277]
[1745859718567,4.16144642,1761.4,1761.0,5.276]
[1745859718887,3.39524642,1761.3,1761.0,5.276]
[1745859719928,3.39524642,1761.1,1761.0,5.276]
[1745859720766,4.18414642,1761.1,1761.0,5.276]
[1745859721393,3.39524642,1761.1,1761.0,5.276]
[1745859722148,3.39524642,1761.3,1761.0,12.28038306]
[1745859722354,4.21574642,1761.5,1761.1,5.67808319]
[1745859723092,3.39524642,1761.3,1761.0,5.276]
[1745859723298,3.39524642,1761.3,1761.0,10.95456652]
[1745859724380,3.39524642,1761.3,1761.0,5.276]
[1745859724574,3.39524642,1761.3,1761.0,10.95454137]
[1745859724780,3.39524642,1761.3,1761.0,5.276]
[1745859726218,3.39524642,1761.1,1760.7,2.1413301]
[1745859726516,3.39524642,1761.1,1760.8,5.276]
[1745859726874,3.39524642,1761.1,1760.8,10.95506166]
[1745859727074,0.7707,1761.4,1760.8,10.95506166]
[1745859727290,3.0,1761.1,1760.8,10.95506166]
[1745859727492,3.0,1761.1,1760.8,7.01979785]
[1745859727691,4.14894642,1761.0,1760.8,5.276]
[1745859727895,6.39524642,1760.9,1760.5,6.1032]
[1745859728082,3.39524642,1760.7,1760.5,6.1032]
[1745859728626,3.7537,1761.0,1760.5,11.78330641]
[1745859728780,3.39524642,1760.8,1760.5,11.78330641]
[1745859728976,3.39524642,1760.8,1760.5,13.5296128]
[1745859729181,7.14894642,1761.0,1760.6,5.67961274]
[1745859730003,7.14894642,1761.0,1760.5,13.5295714]
[1745859730316,7.14894642,1761.0,1760.6,5.67978596]
[1745859730507,6.39524642,1761.0,1760.6,5.67978596]
[1745859730687,3.0,1761.0,1760.7,0.7998]
[1745859731319,3.0,1761.0,1760.7,6.47922559]
[1745859731616,5.76530344,1761.1,1760.8,5.67908383]
[1745859731813,5.76530344,1761.1,1760.7,6.47920714]
[1745859731814,3.39524642,1761.1,1760.7,6.47920714]
[1745859732021,3.39524642,1761.1,1760.7,6.47917797]
[1745859732207,3.39524642,1761.1,1760.8,5.67921429]
[1745859732833,3.39524642,1761.1,1760.7,6.4791802]
[1745859733034,3.39524642,1761.1,1760.7,6.47916531]
[1745859733203,3.39524642,1760.9,1760.6,8.37984669]
[1745859733387,3.39524642,1760.9,1760.6,14.05951555]
[1745859733590,3.39524642,1760.9,1760.6,8.37980293]
[1745859733908,4.15154642,1760.9,1760.6,8.37980293]
[1745859734232,3.39524642,1760.7,1760.3,1.3378301]
[1745859734388,3.39524642,1760.4,1760.0,6.0562]
[1745859734595,3.39524642,1760.1,1759.9,5.277]
[1745859734793,3.39524642,1760.1,1759.9,6.45085691]
[1745859735422,3.39524642,1760.1,1759.9,5.277]
[1745859735738,3.39524642,1760.1,1759.7,5.68276958]
[1745859735939,3.39524642,1760.1,1759.6,5.278]
[1745859736098,3.0,1760.1,1759.8,5.68218352]
[1745859736296,3.39524642,1760.2,1759.9,6.45122089]
[1745859736499,3.39524642,1760.2,1760.0,0.64512209]
[1745859737109,3.39524642,1760.2,1759.8,11.36456969]
[1745859737310,3.39524642,1760.2,1759.9,5.68213869]
[1745859737603,0.8187,1760.3,1759.9,5.68213869]
[1745859737604,7.10040411,1760.3,1759.9,5.68213869]
[1745859738000,7.10040411,1760.3,1759.8,5.68227112]
[1745859738528,7.10040411,1760.3,1759.8,5.68225393]
[1745859739032,7.10040411,1760.3,1759.9,6.25024246]
[1745859739395,7.10040411,1760.3,1759.9,6.2502122]
[1745859739598,7.10040411,1760.3,1759.9,6.25021091]
[1745859740535,6.28170411,1760.1,1759.7,5.6827706]
[1745859740742,3.0,1760.0,1759.7,5.6827706]
[1745859741308,3.0,1760.0,1759.7,11.36538202]
[1745859741502,6.28170411,1760.2,1759.8,5.68225115]
[1745859741729,6.28170411,1760.2,1759.7,5.682606]
[1745859741730,3.0,1760.1,1759.7,5.682606]
[1745859742919,3.0,1759.9,1759.6,5.278]
[1745859743132,3.92817041,1760.1,1759.4,17.049]
[1745859743133,3.7742,1759.7,1759.4,17.049]
[1745859743330,6.28170411,1759.6,1759.3,10.96306824]
[1745859744833,0.7742,1759.7,1759.4,5.68374699]
[1745859745135,8.65176113,1760.0,1759.5,0.7709]
[1745859745305,2.37005702,1760.0,1759.8,5.68241178]
[1745859745508,0.8033,1760.1,1759.7,10.95558502]
[1745859745711,3.8033,1760.1,1759.7,10.95558502]
[1745859746107,3.8033,1760.1,1759.7,12.61943493]
[1745859746435,0.7558,1760.3,1759.9,5.68213946]
[1745859746728,6.28170411,1760.2,1759.8,5.68231238]
[1745859746910,3.0,1760.1,1759.8,5.68223598]
[1745859747106,0.7558,1760.3,1759.9,5.68197569]
[1745859747323,3.7558,1760.3,1759.9,6.25017326]
[1745859747920,3.7558,1760.3,1759.9,0.56819757]
[1745859748910,3.0,1760.1,1759.8,5.68227297]
[1745859749112,3.0,1760.2,1759.8,5.68227297]
[1745859749342,3.0,1760.2,1759.8,11.3645661]
[1745859749641,3.0,1760.2,1759.9,5.6819692]
[1745859749822,3.0,1760.2,1760.0,6.25000916]
[1745859750008,3.42864331,1760.4,1760.0,6.25000916]
[1745859750215,3.0,1760.4,1760.0,0.56819692]
[1745859750397,6.28170411,1760.3,1759.9,6.48452177]
[1745859751038,6.28170411,1760.3,1759.8,5.68232485]
[1745859751228,6.28170411,1760.3,1759.8,11.36459428]
[1745859751431,6.28170411,1760.3,1759.9,5.6820753]
[1745859751947,0.7657,1760.2,1759.8,5.68226943]
[1745859752245,0.7657,1760.2,1759.8,7.58777763]
[1745859752941,0.7657,1760.2,1759.9,5.68205682]
[1745859753121,0.7657,1760.2,1759.8,7.58777763]
[1745859754538,0.7657,1760.2,1759.8,13.2700164]
[1745859754738,0.7657,1760.2,1759.8,13.27003385]
[1745859755053,0.7657,1760.2,1759.8,7.58774697]
[1745859755453,0.7657,1760.2,1759.9,5.6821123]
[1745859755816,0.7657,1760.2,1759.9,7.00892511]
[1745859756547,6.28170411,1760.3,1760.0,5.68171408]
[1745859756752,4.23472421,1760.4,1760.0,6.43431408]
[1745859756919,4.23472421,1760.4,1760.1,5.68140317]
[1745859757531,4.23472421,1760.4,1760.0,6.43420202]
[1745859757730,4.23472421,1760.4,1760.0,7.64582285]
[1745859757934,4.23472421,1760.4,1760.0,1.96422083]